[Event "Titled Tuesday Blitz April 25 Late 2023"]
[White "Holtel, Jasper"]
[Black "Aigner, Michael"]
[WhiteFideId "12956376"]
[BlackFideId "2017288"]
[WhiteElo "2372"]
[BlackElo "1966"]
[Result "1-0"]
[Round "09"]
[TimeControl "180+2"]
[Date "2023.04.25"]
[WhiteClock "0:00:09"]
[BlackClock "0:00:18"]

1. e4 {[%clk 0:03:00]}  c5 {[%clk 0:02:32]} 2. Nf3 {[%clk 0:02:59]}  Nc6 {[%clk 0:02:32]} 3. Bb5 {[%clk 0:02:58]}  g6 {[%clk 0:02:32]} 4. Bxc6 {[%clk 0:02:58]}  dxc6 {[%clk 0:02:31]} 5. d3 {[%clk 0:02:58]}  Bg7 {[%clk 0:02:32]} 6. h3 {[%clk 0:02:58]}  Nf6 {[%clk 0:02:32]} 7. O-O {[%clk 0:02:57]}  Nd7 {[%clk 0:02:32]} 8. Nbd2 {[%clk 0:02:54]}  e5 {[%clk 0:02:32]} 9. Nc4 {[%clk 0:02:53]}  Qe7 {[%clk 0:02:33]} 10. a4 {[%clk 0:02:52]}  Nf8 {[%clk 0:02:31]} 11. Be3 {[%clk 0:02:46]}  b6 {[%clk 0:02:29]} 12. Kh1 {[%clk 0:02:16]}  f6 {[%clk 0:02:28]} 13. c3 {[%clk 0:02:09]}  Ne6 {[%clk 0:02:25]} 14. Rb1 {[%clk 0:02:03]}  O-O {[%clk 0:02:22]} 15. Nh2 {[%clk 0:01:52]}  g5 {[%clk 0:02:16]} 16. Re1 {[%clk 0:01:43]}  Rd8 {[%clk 0:02:15]} 17. Qc2 {[%clk 0:01:42]}  Ba6 {[%clk 0:02:08]} 18. b3 {[%clk 0:01:41]}  Rd7 {[%clk 0:02:05]} 19. Nf1 {[%clk 0:01:39]}  Rad8 {[%clk 0:02:04]} 20. Rbd1 {[%clk 0:01:38]}  Bc8 {[%clk 0:02:02]} 21. Ng3 {[%clk 0:01:38]}  Qf8 {[%clk 0:01:59]} 22. Nf5 {[%clk 0:01:38]}  Rb7 {[%clk 0:01:36]} 23. g4 {[%clk 0:01:28]}  Nf4 {[%clk 0:01:34]} 24. Bxf4 {[%clk 0:01:28]}  Bxf5 {[%clk 0:01:30]} 25. Bxg5 {[%clk 0:00:40]}  Bxg4 {[%clk 0:01:27]} 26. hxg4 {[%clk 0:00:38]}  fxg5 {[%clk 0:01:27]} 27. Ne3 {[%clk 0:00:32]}  Qf3+ {[%clk 0:01:22]} 28. Kg1 {[%clk 0:00:31]}  Rbd7 {[%clk 0:01:18]} 29. Rd2 {[%clk 0:00:19]}  h5 {[%clk 0:01:09]} 30. Qd1 {[%clk 0:00:18]}  hxg4 {[%clk 0:01:05]} 31. Qxf3 {[%clk 0:00:17]}  gxf3 {[%clk 0:01:05]} 32. Red1 {[%clk 0:00:16]}  Kf7 {[%clk 0:01:03]} 33. Nf5 {[%clk 0:00:15]}  Bf6 {[%clk 0:01:01]} 34. Kh2 {[%clk 0:00:15]}  g4 {[%clk 0:00:56]} 35. Nh6+ {[%clk 0:00:15]}  Kg6 {[%clk 0:00:55]} 36. Nxg4 {[%clk 0:00:15]}  Bg7 {[%clk 0:00:52]} 37. Kg3 {[%clk 0:00:15]}  Rf8 {[%clk 0:00:51]} 38. Ne3 {[%clk 0:00:14]}  Bh6 {[%clk 0:00:49]} 39. Rh1 {[%clk 0:00:14]}  Bxe3 {[%clk 0:00:44]} 40. fxe3 {[%clk 0:00:14]}  Rg7 {[%clk 0:00:42]} 41. Kf2 {[%clk 0:00:12]}  Kf7 {[%clk 0:00:40]} 42. Rg1 {[%clk 0:00:11]}  Rh7 {[%clk 0:00:37]} 43. Kxf3 {[%clk 0:00:10]}  Ke6+ {[%clk 0:00:36]} 44. Ke2 {[%clk 0:00:11]}  Rh2+ {[%clk 0:00:36]} 45. Kd1 {[%clk 0:00:11]}  Rxd2+ {[%clk 0:00:35]} 46. Kxd2 {[%clk 0:00:12]}  Rf2+ {[%clk 0:00:35]} 47. Kc1 {[%clk 0:00:12]}  Re2 {[%clk 0:00:33]} 48. Rg7 {[%clk 0:00:11]}  Rxe3 {[%clk 0:00:33]} 49. Kd2 {[%clk 0:00:12]}  Rh3 {[%clk 0:00:32]} 50. Rxa7 {[%clk 0:00:12]}  Rh2+ {[%clk 0:00:32]} 51. Ke3 {[%clk 0:00:13]}  Rb2 {[%clk 0:00:31]} 52. Rc7 {[%clk 0:00:12]}  Kd6 {[%clk 0:00:31]} 53. Rb7 {[%clk 0:00:11]}  Rxb3 {[%clk 0:00:31]} 54. a5 {[%clk 0:00:11]}  b5 {[%clk 0:00:28]} 55. a6 {[%clk 0:00:11]}  Ra3 {[%clk 0:00:28]} 56. a7 {[%clk 0:00:11]}  b4 {[%clk 0:00:25]} 57. cxb4 {[%clk 0:00:12]}  c4 {[%clk 0:00:24]} 58. Kd2 {[%clk 0:00:11]}  Rxd3+ {[%clk 0:00:24]} 59. Kc2 {[%clk 0:00:11]}  Ra3 {[%clk 0:00:24]} 60. Kb2 {[%clk 0:00:12]}  Ra6 {[%clk 0:00:24]} 61. Kc3 {[%clk 0:00:12]}  Ra1 {[%clk 0:00:22]} 62. Kxc4 {[%clk 0:00:12]}  Ra2 {[%clk 0:00:21]} 63. Kb3 {[%clk 0:00:12]}  Ra1 {[%clk 0:00:22]} 64. Kb2 {[%clk 0:00:12]}  Ra6 {[%clk 0:00:21]} 65. Kb3 {[%clk 0:00:11]}  Ra1 {[%clk 0:00:21]} 66. Kc3 {[%clk 0:00:11]}  Ra3+ {[%clk 0:00:21]} 67. Kc4 {[%clk 0:00:12]}  Ra1 {[%clk 0:00:20]} 68. b5 {[%clk 0:00:11]}  Rc1+ {[%clk 0:00:19]} 69. Kd3 {[%clk 0:00:10]}  Ra1 {[%clk 0:00:19]} 70. b6 {[%clk 0:00:09]}  Kc5 {[%clk 0:00:18]} 71. Rb8 {[%clk 0:00:09]} 1-0


[Site "https://www.chess.com"]

[Event "Titled Tuesday Blitz April 25 Late 2023"]
[White "Capp, Stephen"]
[Black "Kraus, Tomas"]
[WhiteFideId "2027089"]
[BlackFideId "331708"]
[WhiteElo "1920"]
[BlackElo "2389"]
[Result "1-0"]
[Round "09"]
[TimeControl "180+2"]
[Date "2023.04.25"]
[WhiteClock "0:00:37"]
[BlackClock "0:01:21"]

1. e4 {[%clk 0:03:00]}  c5 {[%clk 0:02:56]} 2. Nc3 {[%clk 0:03:00]}  d6 {[%clk 0:02:56]} 3. f4 {[%clk 0:02:59]}  g6 {[%clk 0:02:55]} 4. Nf3 {[%clk 0:02:59]}  Bg7 {[%clk 0:02:54]} 5. Bb5+ {[%clk 0:02:59]}  Bd7 {[%clk 0:02:53]} 6. Bc4 {[%clk 0:02:59]}  Nc6 {[%clk 0:02:53]} 7. d3 {[%clk 0:02:59]}  Nf6 {[%clk 0:02:51]} 8. Bb3 {[%clk 0:02:54]}  O-O {[%clk 0:02:50]} 9. O-O {[%clk 0:02:53]}  Na5 {[%clk 0:02:49]} 10. h3 {[%clk 0:02:49]}  Nxb3 {[%clk 0:02:48]} 11. axb3 {[%clk 0:02:50]}  b5 {[%clk 0:02:44]} 12. Qe1 {[%clk 0:02:49]}  b4 {[%clk 0:02:44]} 13. Ne2 {[%clk 0:02:48]}  Bc6 {[%clk 0:02:39]} 14. Qh4 {[%clk 0:02:47]}  Qd7 {[%clk 0:02:37]} 15. e5 {[%clk 0:02:13]}  dxe5 {[%clk 0:02:35]} 16. fxe5 {[%clk 0:02:05]}  Nd5 {[%clk 0:02:31]} 17. Bh6 {[%clk 0:01:53]}  f6 {[%clk 0:02:23]} 18. Bxg7 {[%clk 0:01:41]}  Kxg7 {[%clk 0:02:21]} 19. Rae1 {[%clk 0:01:36]}  Ne3 {[%clk 0:02:16]} 20. Rf2 {[%clk 0:01:26]}  Nf5 {[%clk 0:02:17]} 21. exf6+ {[%clk 0:01:20]}  exf6 {[%clk 0:02:08]} 22. Qc4 {[%clk 0:01:17]}  Qd5 {[%clk 0:02:00]} 23. Nf4 {[%clk 0:01:12]}  Qxc4 {[%clk 0:01:59]} 24. bxc4 {[%clk 0:01:11]}  Rfe8 {[%clk 0:01:59]} 25. Ne6+ {[%clk 0:01:10]}  Kf7 {[%clk 0:01:59]} 26. Nxc5 {[%clk 0:01:07]}  Bxf3 {[%clk 0:02:00]} 27. Rxe8 {[%clk 0:01:05]}  Rxe8 {[%clk 0:02:01]} 28. gxf3 {[%clk 0:01:05]}  Re1+ {[%clk 0:02:00]} 29. Kg2 {[%clk 0:01:05]}  Ne3+ {[%clk 0:01:59]} 30. Kg3 {[%clk 0:01:04]}  Nd1 {[%clk 0:01:57]} 31. Rd2 {[%clk 0:01:00]}  Nxb2 {[%clk 0:01:57]} 32. d4 {[%clk 0:00:59]}  Nxc4 {[%clk 0:01:52]} 33. Rd3 {[%clk 0:00:58]}  a5 {[%clk 0:01:48]} 34. d5 {[%clk 0:00:58]}  Nd6 {[%clk 0:01:41]} 35. c3 {[%clk 0:00:50]}  Rb1 {[%clk 0:01:27]} 36. cxb4 {[%clk 0:00:50]}  axb4 {[%clk 0:01:28]} 37. Ne4 {[%clk 0:00:42]}  Ke7 {[%clk 0:01:25]} 38. Nd2 {[%clk 0:00:40]}  Nf5+ {[%clk 0:01:21]} 39. Kf4 {[%clk 0:00:38]}  Kd6 {[%clk 0:01:21]} 40. Nxb1 {[%clk 0:00:37]} 1-0


[Site "https://www.chess.com"]

[Event "Titled Tuesday Blitz April 25 Late 2023"]
[White "Marchesich, Giovanni"]
[Black "yoriiiis"]
[WhiteFideId "2824790"]
[WhiteElo "2209"]
[BlackElo "2127"]
[Result "0-1"]
[Round "09"]
[TimeControl "180+2"]
[Date "2023.04.25"]
[WhiteClock "0:02:24"]
[BlackClock "0:01:06"]

1. d4 {[%clk 0:03:00]}  d5 {[%clk 0:02:54]} 2. Nc3 {[%clk 0:03:01]}  Nf6 {[%clk 0:02:52]} 3. Bf4 {[%clk 0:03:01]}  Bf5 {[%clk 0:02:50]} 4. e3 {[%clk 0:03:00]}  c6 {[%clk 0:02:49]} 5. Bd3 {[%clk 0:03:00]}  Bxd3 {[%clk 0:02:49]} 6. Qxd3 {[%clk 0:03:01]}  Nbd7 {[%clk 0:02:48]} 7. Nf3 {[%clk 0:03:01]}  e6 {[%clk 0:02:43]} 8. O-O {[%clk 0:03:01]}  Be7 {[%clk 0:02:42]} 9. h3 {[%clk 0:02:58]}  O-O {[%clk 0:02:41]} 10. Bh2 {[%clk 0:02:58]}  c5 {[%clk 0:02:40]} 11. Ne5 {[%clk 0:02:58]}  c4 {[%clk 0:02:33]} 12. Qe2 {[%clk 0:02:54]}  a6 {[%clk 0:02:33]} 13. f4 {[%clk 0:02:53]}  Qc7 {[%clk 0:02:26]} 14. Qf3 {[%clk 0:02:51]}  b5 {[%clk 0:02:23]} 15. g4 {[%clk 0:02:51]}  b4 {[%clk 0:02:23]} 16. Ne2 {[%clk 0:02:50]}  Ne4 {[%clk 0:02:22]} 17. Rad1 {[%clk 0:02:44]}  Nxe5 {[%clk 0:02:12]} 18. fxe5 {[%clk 0:02:44]}  Bg5 {[%clk 0:02:01]} 19. Bf4 {[%clk 0:02:44]}  Qe7 {[%clk 0:01:57]} 20. Ng3 {[%clk 0:02:43]}  Nxg3 {[%clk 0:01:55]} 21. Qxg3 {[%clk 0:02:43]}  a5 {[%clk 0:01:39]} 22. Rf3 {[%clk 0:02:41]}  a4 {[%clk 0:01:38]} 23. Rdf1 {[%clk 0:02:41]}  Ra7 {[%clk 0:01:36]} 24. Bxg5 {[%clk 0:02:35]}  Qxg5 {[%clk 0:01:35]} 25. h4 {[%clk 0:02:36]}  Qg6 {[%clk 0:01:33]} 26. R1f2 {[%clk 0:02:33]}  b3 {[%clk 0:01:31]} 27. cxb3 {[%clk 0:02:32]}  axb3 {[%clk 0:01:31]} 28. a3 {[%clk 0:02:29]}  Rb7 {[%clk 0:01:26]} 29. h5 {[%clk 0:02:27]}  Qb1+ {[%clk 0:01:24]} 30. Kg2 {[%clk 0:02:26]}  c3 {[%clk 0:01:24]} 31. bxc3 {[%clk 0:02:27]}  b2 {[%clk 0:01:23]} 32. g5 {[%clk 0:02:25]}  Qe4 {[%clk 0:01:20]} 33. g6 {[%clk 0:02:24]}  b1=Q {[%clk 0:01:08]} 34. gxf7+ {[%clk 0:02:24]}  Rbxf7 {[%clk 0:01:06]} 0-1


[Site "https://www.chess.com"]

[Event "Titled Tuesday Blitz April 25 Late 2023"]
[White "Naroditsky, Daniel"]
[Black "Bortnyk, Olexandr"]
[WhiteFideId "2026961"]
[BlackFideId "14120828"]
[WhiteElo "2633"]
[BlackElo "2734"]
[Result "1/2-1/2"]
[Round "10"]
[TimeControl "180+2"]
[Date "2023.04.25"]
[WhiteClock "0:00:06"]
[BlackClock "0:00:02"]

1. Nf3 {[%clk 0:03:00]}  Nf6 {[%clk 0:02:57]} 2. c4 {[%clk 0:03:01]}  b6 {[%clk 0:02:57]} 3. g3 {[%clk 0:02:58]}  Bb7 {[%clk 0:02:58]} 4. Bg2 {[%clk 0:02:58]}  g6 {[%clk 0:02:58]} 5. O-O {[%clk 0:02:58]}  Bg7 {[%clk 0:02:58]} 6. d4 {[%clk 0:02:55]}  O-O {[%clk 0:02:58]} 7. d5 {[%clk 0:02:55]}  Na6 {[%clk 0:02:58]} 8. Nc3 {[%clk 0:02:53]}  Nc5 {[%clk 0:02:58]} 9. Qc2 {[%clk 0:02:53]}  a5 {[%clk 0:02:56]} 10. Rd1 {[%clk 0:02:53]}  Ne8 {[%clk 0:02:56]} 11. Bf4 {[%clk 0:02:41]}  Nd6 {[%clk 0:02:45]} 12. b3 {[%clk 0:02:41]}  c6 {[%clk 0:02:31]} 13. Be5 {[%clk 0:02:39]}  cxd5 {[%clk 0:02:26]} 14. Bxg7 {[%clk 0:02:36]}  Kxg7 {[%clk 0:02:27]} 15. Nxd5 {[%clk 0:02:37]}  Bxd5 {[%clk 0:02:21]} 16. Rxd5 {[%clk 0:02:38]}  f6 {[%clk 0:02:17]} 17. Rad1 {[%clk 0:02:37]}  Qc7 {[%clk 0:02:09]} 18. h4 {[%clk 0:02:24]}  Nf7 {[%clk 0:01:12]} 19. Nd4 {[%clk 0:02:16]}  Rac8 {[%clk 0:00:48]} 20. h5 {[%clk 0:02:05]}  e6 {[%clk 0:00:44]} 21. Nb5 {[%clk 0:01:55]}  Qb8 {[%clk 0:00:45]} 22. R5d4 {[%clk 0:01:47]}  Qe5 {[%clk 0:00:44]} 23. Bf3 {[%clk 0:01:21]}  Ng5 {[%clk 0:00:41]} 24. hxg6 {[%clk 0:01:15]}  Nxf3+ {[%clk 0:00:33]} 25. exf3 {[%clk 0:01:16]}  hxg6 {[%clk 0:00:33]} 26. Qd2 {[%clk 0:01:09]}  Rcd8 {[%clk 0:00:21]} 27. Kg2 {[%clk 0:01:07]}  Rh8 {[%clk 0:00:20]} 28. Qe3 {[%clk 0:00:48]}  Qxe3 {[%clk 0:00:12]} 29. fxe3 {[%clk 0:00:49]}  Kf7 {[%clk 0:00:12]} 30. Rd6 {[%clk 0:00:46]}  Rb8 {[%clk 0:00:10]} 31. Nc3 {[%clk 0:00:44]}  Ke7 {[%clk 0:00:09]} 32. Na4 {[%clk 0:00:44]}  Rhd8 {[%clk 0:00:02]} 33. Nxb6 {[%clk 0:00:43]}  Rb7 {[%clk 0:00:02]} 34. e4 {[%clk 0:00:36]}  Rdb8 {[%clk 0:00:03]} 35. Na4 {[%clk 0:00:34]}  Nxa4 {[%clk 0:00:03]} 36. bxa4 {[%clk 0:00:35]}  Rc7 {[%clk 0:00:03]} 37. Ra6 {[%clk 0:00:17]}  Rb2+ {[%clk 0:00:03]} 38. Kh3 {[%clk 0:00:17]}  Rxa2 {[%clk 0:00:03]} 39. Rxa5 {[%clk 0:00:17]}  f5 {[%clk 0:00:02]} 40. exf5 {[%clk 0:00:11]}  gxf5 {[%clk 0:00:03]} 41. Ra8 {[%clk 0:00:07]}  Ra3 {[%clk 0:00:02]} 42. f4 {[%clk 0:00:06]}  Rxc4 {[%clk 0:00:02]} 43. Ra7 {[%clk 0:00:06]}  Rxf4 {[%clk 0:00:02]} 44. Rdxd7+ {[%clk 0:00:06]}  Kf6 {[%clk 0:00:03]} 45. Rf7+ {[%clk 0:00:06]}  Kg6 {[%clk 0:00:02]} 46. Rg7+ {[%clk 0:00:06]}  Kf6 {[%clk 0:00:03]} 47. Rgf7+ {[%clk 0:00:06]}  Kg6 {[%clk 0:00:02]} 48. Rg7+ {[%clk 0:00:06]}  Kf6 {[%clk 0:00:02]} 49. Rgf7+ {[%clk 0:00:06]} 1/2-1/2


[Site "https://www.chess.com"]

[Event "Titled Tuesday Blitz April 25 Late 2023"]
[White "Bluebaum, Matthias"]
[Black "Kamsky, Gata"]
[WhiteFideId "24651516"]
[BlackFideId "2000024"]
[WhiteElo "2638"]
[BlackElo "2660"]
[Result "1/2-1/2"]
[Round "10"]
[TimeControl "180+2"]
[Date "2023.04.25"]
[WhiteClock "0:00:06"]
[BlackClock "0:00:12"]

1. d4 {[%clk 0:03:00]}  Nf6 {[%clk 0:02:53]} 2. c4 {[%clk 0:03:01]}  e6 {[%clk 0:02:52]} 3. Nc3 {[%clk 0:03:01]}  Bb4 {[%clk 0:02:47]} 4. e3 {[%clk 0:03:02]}  O-O {[%clk 0:02:46]} 5. Bd2 {[%clk 0:03:03]}  d5 {[%clk 0:02:39]} 6. Nf3 {[%clk 0:03:03]}  a5 {[%clk 0:02:33]} 7. Rc1 {[%clk 0:03:00]}  Bxc3 {[%clk 0:02:30]} 8. Bxc3 {[%clk 0:03:00]}  Ne4 {[%clk 0:02:31]} 9. Bd3 {[%clk 0:02:57]}  Nxc3 {[%clk 0:02:31]} 10. Rxc3 {[%clk 0:02:58]}  Nd7 {[%clk 0:02:28]} 11. cxd5 {[%clk 0:02:56]}  exd5 {[%clk 0:02:26]} 12. Qc2 {[%clk 0:02:56]}  c6 {[%clk 0:02:12]} 13. Bxh7+ {[%clk 0:02:56]}  Kh8 {[%clk 0:02:12]} 14. Bd3 {[%clk 0:02:52]}  Qe7 {[%clk 0:02:09]} 15. O-O {[%clk 0:02:51]}  g6 {[%clk 0:02:09]} 16. e4 {[%clk 0:02:39]}  dxe4 {[%clk 0:02:08]} 17. Bxe4 {[%clk 0:02:39]}  Nf6 {[%clk 0:02:06]} 18. Re3 {[%clk 0:02:40]}  Nxe4 {[%clk 0:02:00]} 19. Rxe4 {[%clk 0:02:37]}  Qf6 {[%clk 0:01:49]} 20. Qd2 {[%clk 0:02:31]}  Kg8 {[%clk 0:01:34]} 21. Rfe1 {[%clk 0:02:21]}  Be6 {[%clk 0:01:32]} 22. a3 {[%clk 0:01:47]}  Bd5 {[%clk 0:01:28]} 23. R4e3 {[%clk 0:01:37]}  Bxf3 {[%clk 0:01:15]} 24. Rxf3 {[%clk 0:01:38]}  Qd6 {[%clk 0:01:13]} 25. Rfe3 {[%clk 0:01:26]}  Rfd8 {[%clk 0:01:12]} 26. h4 {[%clk 0:01:22]}  Qf6 {[%clk 0:01:11]} 27. Re4 {[%clk 0:01:21]}  Rd5 {[%clk 0:01:10]} 28. Qh6 {[%clk 0:01:20]}  Rf8 {[%clk 0:01:04]} 29. Re8 {[%clk 0:01:16]}  Qg7 {[%clk 0:01:04]} 30. Rxf8+ {[%clk 0:01:16]}  Qxf8 {[%clk 0:01:03]} 31. Qf4 {[%clk 0:01:14]}  Qd8 {[%clk 0:01:02]} 32. Re4 {[%clk 0:01:12]}  Kg7 {[%clk 0:01:02]} 33. g3 {[%clk 0:00:53]}  Qf6 {[%clk 0:00:58]} 34. Qe3 {[%clk 0:00:54]}  Qd6 {[%clk 0:00:51]} 35. Kg2 {[%clk 0:00:49]}  Rb5 {[%clk 0:00:46]} 36. Re5 {[%clk 0:00:33]}  Rxb2 {[%clk 0:00:44]} 37. h5 {[%clk 0:00:33]}  Rb5 {[%clk 0:00:39]} 38. h6+ {[%clk 0:00:23]}  Kh7 {[%clk 0:00:39]} 39. Qf4 {[%clk 0:00:21]}  Qf8 {[%clk 0:00:16]} 40. Re1 {[%clk 0:00:15]}  Rf5 {[%clk 0:00:13]} 41. Qc7 {[%clk 0:00:14]}  Kxh6 {[%clk 0:00:13]} 42. Qxb7 {[%clk 0:00:13]}  Qd8 {[%clk 0:00:12]} 43. Qxc6 {[%clk 0:00:05]}  Qxd4 {[%clk 0:00:11]} 44. Re2 {[%clk 0:00:06]}  Qd5+ {[%clk 0:00:11]} 45. Qxd5 {[%clk 0:00:06]}  Rxd5 {[%clk 0:00:12]} 46. Re4 {[%clk 0:00:06]}  f5 {[%clk 0:00:10]} 47. Rc4 {[%clk 0:00:06]}  g5 {[%clk 0:00:11]} 48. g4 {[%clk 0:00:06]}  fxg4 {[%clk 0:00:11]} 49. Rxg4 {[%clk 0:00:06]}  Kh5 {[%clk 0:00:11]} 50. Rc4 {[%clk 0:00:06]}  g4 {[%clk 0:00:11]} 51. a4 {[%clk 0:00:05]}  Kg5 {[%clk 0:00:11]} 52. Kg3 {[%clk 0:00:06]}  Rd3+ {[%clk 0:00:11]} 53. Kg2 {[%clk 0:00:06]}  Rd5 {[%clk 0:00:12]} 54. Kg3 {[%clk 0:00:06]}  Rd3+ {[%clk 0:00:12]} 55. Kg2 {[%clk 0:00:06]}  Rd5 {[%clk 0:00:12]} 1/2-1/2


[Site "https://www.chess.com"]

[Event "Titled Tuesday Blitz April 25 Late 2023"]
[White "Kuzubov, Yuriy"]
[Black "Caruana, Fabiano"]
[WhiteFideId "14112906"]
[BlackFideId "2020009"]
[WhiteElo "2496"]
[BlackElo "2837"]
[Result "1-0"]
[Round "10"]
[TimeControl "180+2"]
[Date "2023.04.25"]
[WhiteClock "0:00:04"]
[BlackClock "0:00:01"]

1. d4 {[%clk 0:02:56]}  Nf6 {[%clk 0:02:59]} 2. c4 {[%clk 0:02:57]}  e6 {[%clk 0:03:00]} 3. Nc3 {[%clk 0:02:57]}  Bb4 {[%clk 0:02:59]} 4. Qc2 {[%clk 0:02:58]}  O-O {[%clk 0:02:57]} 5. a3 {[%clk 0:02:58]}  Bxc3+ {[%clk 0:02:57]} 6. Qxc3 {[%clk 0:02:59]}  d6 {[%clk 0:02:57]} 7. f3 {[%clk 0:02:57]}  Nc6 {[%clk 0:02:54]} 8. e4 {[%clk 0:02:46]}  e5 {[%clk 0:02:53]} 9. d5 {[%clk 0:02:46]}  Nd4 {[%clk 0:02:41]} 10. Ne2 {[%clk 0:02:45]}  Nxe2 {[%clk 0:02:36]} 11. Bxe2 {[%clk 0:02:46]}  Nh5 {[%clk 0:02:36]} 12. Be3 {[%clk 0:02:42]}  Nf4 {[%clk 0:02:32]} 13. Bxf4 {[%clk 0:02:23]}  exf4 {[%clk 0:02:33]} 14. O-O {[%clk 0:02:23]}  Re8 {[%clk 0:02:24]} 15. c5 {[%clk 0:02:18]}  Bd7 {[%clk 0:02:16]} 16. Rac1 {[%clk 0:02:16]}  a5 {[%clk 0:01:56]} 17. cxd6 {[%clk 0:01:57]}  cxd6 {[%clk 0:01:57]} 18. Qc7 {[%clk 0:01:57]}  Qe7 {[%clk 0:01:55]} 19. Qb6 {[%clk 0:01:51]}  Rec8 {[%clk 0:01:38]} 20. Rxc8+ {[%clk 0:01:47]}  Rxc8 {[%clk 0:01:39]} 21. Qxb7 {[%clk 0:01:47]}  Qd8 {[%clk 0:01:22]} 22. Qa7 {[%clk 0:01:02]}  Rc2 {[%clk 0:01:15]} 23. Bd3 {[%clk 0:00:51]}  Rxb2 {[%clk 0:01:15]} 24. Qd4 {[%clk 0:00:43]}  Qb6 {[%clk 0:00:52]} 25. Qxb6 {[%clk 0:00:43]}  Rxb6 {[%clk 0:00:53]} 26. Rb1 {[%clk 0:00:41]}  Rxb1+ {[%clk 0:00:45]} 27. Bxb1 {[%clk 0:00:42]}  g5 {[%clk 0:00:42]} 28. Kf2 {[%clk 0:00:38]}  Kg7 {[%clk 0:00:42]} 29. g3 {[%clk 0:00:24]}  h6 {[%clk 0:00:26]} 30. gxf4 {[%clk 0:00:22]}  gxf4 {[%clk 0:00:27]} 31. Ke2 {[%clk 0:00:19]}  Kf6 {[%clk 0:00:27]} 32. Kd2 {[%clk 0:00:18]}  Kg5 {[%clk 0:00:25]} 33. Ke1 {[%clk 0:00:16]}  Kh4 {[%clk 0:00:22]} 34. Kf2 {[%clk 0:00:16]}  Kh3 {[%clk 0:00:22]} 35. Kg1 {[%clk 0:00:16]}  Bb5 {[%clk 0:00:21]} 36. e5 {[%clk 0:00:15]}  Bd7 {[%clk 0:00:12]} 37. exd6 {[%clk 0:00:14]}  Kh4 {[%clk 0:00:12]} 38. Kf2 {[%clk 0:00:12]}  Kg5 {[%clk 0:00:13]} 39. Ke2 {[%clk 0:00:12]}  Kf6 {[%clk 0:00:13]} 40. Kd3 {[%clk 0:00:12]}  Ke5 {[%clk 0:00:14]} 41. Kc4 {[%clk 0:00:12]}  Kxd6 {[%clk 0:00:14]} 42. Kd4 {[%clk 0:00:12]}  f5 {[%clk 0:00:08]} 43. Bd3 {[%clk 0:00:12]}  Bc8 {[%clk 0:00:08]} 44. Bc4 {[%clk 0:00:12]}  Bb7 {[%clk 0:00:08]} 45. Bb3 {[%clk 0:00:11]}  Bc8 {[%clk 0:00:08]} 46. Bc2 {[%clk 0:00:11]}  Bd7 {[%clk 0:00:07]} 47. Bd3 {[%clk 0:00:11]}  Bc8 {[%clk 0:00:08]} 48. Bc2 {[%clk 0:00:11]}  Bb7 {[%clk 0:00:07]} 49. Bb3 {[%clk 0:00:11]}  Ba6 {[%clk 0:00:07]} 50. Bc4 {[%clk 0:00:11]}  Bc8 {[%clk 0:00:08]} 51. Bb5 {[%clk 0:00:10]}  Bb7 {[%clk 0:00:08]} 52. Bc4 {[%clk 0:00:11]}  Ba8 {[%clk 0:00:08]} 53. Bb3 {[%clk 0:00:10]}  Bb7 {[%clk 0:00:08]} 54. Ba2 {[%clk 0:00:10]}  Bc8 {[%clk 0:00:08]} 55. Bc4 {[%clk 0:00:10]}  Bd7 {[%clk 0:00:09]} 56. Be2 {[%clk 0:00:09]}  Ba4 {[%clk 0:00:09]} 57. Kc4 {[%clk 0:00:09]}  Bc2 {[%clk 0:00:07]} 58. Kb5 {[%clk 0:00:07]}  Kxd5 {[%clk 0:00:07]} 59. Kxa5 {[%clk 0:00:07]}  Kd4 {[%clk 0:00:08]} 60. Kb4 {[%clk 0:00:07]}  Ke3 {[%clk 0:00:08]} 61. Kc3 {[%clk 0:00:03]}  Ba4 {[%clk 0:00:06]} 62. Bd3 {[%clk 0:00:03]}  Kxf3 {[%clk 0:00:06]} 63. Bxf5 {[%clk 0:00:04]}  Ke3 {[%clk 0:00:05]} 64. Kb4 {[%clk 0:00:04]}  Bc6 {[%clk 0:00:03]} 65. Kc5 {[%clk 0:00:04]}  Ba4 {[%clk 0:00:02]} 66. Kb4 {[%clk 0:00:03]}  Bc6 {[%clk 0:00:03]} 67. Kc5 {[%clk 0:00:04]}  Bb7 {[%clk 0:00:02]} 68. a4 {[%clk 0:00:03]}  f3 {[%clk 0:00:03]} 69. Bh3 {[%clk 0:00:03]}  f2 {[%clk 0:00:03]} 70. a5 {[%clk 0:00:03]}  Ke2 {[%clk 0:00:02]} 71. Kb6 {[%clk 0:00:03]}  Bc8 {[%clk 0:00:03]} 72. Bxc8 {[%clk 0:00:03]}  Ke3 {[%clk 0:00:01]} 73. Ba6 {[%clk 0:00:04]} 1-0


[Site "https://www.chess.com"]

[Event "Titled Tuesday Blitz April 25 Late 2023"]
[White "Makarian, Rudik"]
[Black "Donchenko, Alexander"]
[WhiteFideId "44105681"]
[BlackFideId "24603295"]
[WhiteElo "2430"]
[BlackElo "2542"]
[Result "1-0"]
[Round "10"]
[TimeControl "180+2"]
[Date "2023.04.25"]
[WhiteClock "0:00:10"]
[BlackClock "0:00:02"]

1. d4 {[%clk 0:03:00]}  Nf6 {[%clk 0:03:00]} 2. c4 {[%clk 0:03:01]}  e6 {[%clk 0:03:00]} 3. Nf3 {[%clk 0:03:02]}  d5 {[%clk 0:03:00]} 4. Nc3 {[%clk 0:03:03]}  Bb4 {[%clk 0:03:01]} 5. Qa4+ {[%clk 0:03:03]}  Nc6 {[%clk 0:03:01]} 6. Bd2 {[%clk 0:03:04]}  O-O {[%clk 0:03:00]} 7. a3 {[%clk 0:03:04]}  Bxc3 {[%clk 0:03:00]} 8. Bxc3 {[%clk 0:03:05]}  Bd7 {[%clk 0:03:00]} 9. cxd5 {[%clk 0:02:47]}  exd5 {[%clk 0:02:54]} 10. Qc2 {[%clk 0:02:46]}  Ne4 {[%clk 0:02:53]} 11. e3 {[%clk 0:02:47]}  Re8 {[%clk 0:02:52]} 12. Bd3 {[%clk 0:02:45]}  Bf5 {[%clk 0:02:46]} 13. Nd2 {[%clk 0:02:33]}  Qf6 {[%clk 0:02:33]} 14. Nxe4 {[%clk 0:02:13]}  Bxe4 {[%clk 0:02:33]} 15. Bxe4 {[%clk 0:02:13]}  Rxe4 {[%clk 0:02:33]} 16. Qb3 {[%clk 0:02:06]}  Nxd4 {[%clk 0:01:46]} 17. Qxd5 {[%clk 0:01:30]}  Qc6 {[%clk 0:01:01]} 18. Qxc6 {[%clk 0:01:28]}  Nxc6 {[%clk 0:01:02]} 19. O-O-O {[%clk 0:01:27]}  Re7 {[%clk 0:01:01]} 20. Rd5 {[%clk 0:01:26]}  f6 {[%clk 0:01:00]} 21. Rhd1 {[%clk 0:01:26]}  Kf7 {[%clk 0:01:01]} 22. b4 {[%clk 0:01:25]}  a6 {[%clk 0:01:01]} 23. Kc2 {[%clk 0:01:25]}  Na7 {[%clk 0:00:58]} 24. a4 {[%clk 0:01:24]}  Nc8 {[%clk 0:00:55]} 25. Kb3 {[%clk 0:01:22]}  Nd6 {[%clk 0:00:54]} 26. R5d3 {[%clk 0:01:10]}  Rae8 {[%clk 0:00:53]} 27. Rc1 {[%clk 0:01:04]}  Ne4 {[%clk 0:00:49]} 28. Be1 {[%clk 0:01:02]}  f5 {[%clk 0:00:48]} 29. f3 {[%clk 0:01:00]}  Nf6 {[%clk 0:00:48]} 30. Bf2 {[%clk 0:00:58]}  c6 {[%clk 0:00:48]} 31. b5 {[%clk 0:00:51]}  axb5 {[%clk 0:00:48]} 32. axb5 {[%clk 0:00:52]}  cxb5 {[%clk 0:00:47]} 33. Kb4 {[%clk 0:00:33]}  Re5 {[%clk 0:00:46]} 34. Rc7+ {[%clk 0:00:32]}  R8e7 {[%clk 0:00:46]} 35. Rxe7+ {[%clk 0:00:31]}  Kxe7 {[%clk 0:00:47]} 36. Bh4 {[%clk 0:00:21]}  Ke6 {[%clk 0:00:42]} 37. Bxf6 {[%clk 0:00:21]}  Kxf6 {[%clk 0:00:42]} 38. Ka5 {[%clk 0:00:21]}  g5 {[%clk 0:00:38]} 39. Rb3 {[%clk 0:00:18]}  h5 {[%clk 0:00:30]} 40. Kb6 {[%clk 0:00:16]}  Re7 {[%clk 0:00:12]} 41. Kxb5 {[%clk 0:00:16]}  g4 {[%clk 0:00:11]} 42. Kc5 {[%clk 0:00:13]}  gxf3 {[%clk 0:00:11]} 43. gxf3 {[%clk 0:00:14]}  Kg5 {[%clk 0:00:10]} 44. Kd6 {[%clk 0:00:12]}  Re8 {[%clk 0:00:10]} 45. Kd7 {[%clk 0:00:11]}  Rb8 {[%clk 0:00:10]} 46. Rb5 {[%clk 0:00:09]}  b6 {[%clk 0:00:04]} 47. e4 {[%clk 0:00:07]}  Rf8 {[%clk 0:00:04]} 48. e5 {[%clk 0:00:08]}  Kf4 {[%clk 0:00:02]} 49. e6 {[%clk 0:00:08]}  Rg8 {[%clk 0:00:01]} 50. e7 {[%clk 0:00:08]}  Kxf3 {[%clk 0:00:01]} 51. Rxf5+ {[%clk 0:00:09]}  Ke4 {[%clk 0:00:02]} 52. Rf8 {[%clk 0:00:09]}  Rg7 {[%clk 0:00:02]} 53. Kd8 {[%clk 0:00:10]} 1-0


[Site "https://www.chess.com"]